Cogmind - Beta 16.1 @@@ ROGUE MODE // 2026.02.24 @ 17:29:08 Player: Silfurdreki Result: Destroyed by G-47 Trooper with Particle Gun Performance ------------- Evolutions (2) 1000 Regions Visited (3) 600 Robots Destroyed (30) 150 Value Destroyed (960) 960 Prototype IDs (14) 280 Alien Tech Used (0) 0 Bonus (0) 0 TOTAL SCORE: 2990 Bonus ------- None Cogmind --------- Core Integrity 0/550 Matter 71/300 Energy 100/100 System Corruption 0% Temperature Critical (809) Movement Core (250) Ox4 Location -8/Materials Parts ------- > --- POWER (1) -------- (None) > --- PROPULSION (3) --- (None) > --- UTILITY (4) ------ Medium Storage Unit Targeting Computer Gun Armor > --- WEAPON (3) ------- (None) > --- INVENTORY (10) --- Ion Engine Subdweller Optics Targeting Computer High-powered Shotgun 1B-0RG's Assimilator Peak State ------------ > --- POWER ------------ Nuclear Core > --- PROPULSION ------- Light Treads Light Treads > --- UTILITY ---------- Medium Storage Unit Targeting Computer Gun Armor Hacking Suite > --- WEAPON ----------- Beam Cannon Subdweller Beam Cannon High-powered Shotgun > --- INVENTORY -------- Ion Engine Subdweller Optics Targeting Computer Subdweller Laser Subdweller Beam Cannon 1B-0RG's Assimilator [Rating: 32] Favorites ----------- Power Subdweller Power Source Engine Subdweller Power Source Power Core Nuclear Core Propulsion Light Treads Treads Light Treads Leg Aluminum Leg Wheel Subdweller Monowheel Utility Medium Storage Unit Device Improved Heat Sink Storage Medium Storage Unit Processor Targeting Computer Hackware Hacking Suite Protection Gun Armor Weapon Subdweller Beam Cannon Energy Gun EM Pulse Gun Energy Cannon Subdweller Beam Cannon Ballistic Gun Subdweller Machine Gun Build | -11 -10 -10 -8 ------- Run | Yrd Mat Sub Mat Slots Evolved 4 | . . . 4 Power . | . . . . Propulsion 1 | . . . 1 Utility 2 | . . . 2 Weapon 1 | . . . 1 Parts Attached 34 | 7 5 17 5 Power 6 | 1 . 4 1 Engine 5 | 1 . 4 . Core 1 | . . . 1 Reactor . | . . . . Propulsion 8 | 2 1 5 . Treads 2 | . . 2 . Leg 3 | 2 1 . . Wheel 3 | . . 3 . Hover . | . . . . Flight . | . . . . Utility 7 | 1 2 1 3 Device 1 | . 1 . . Storage 2 | 1 1 . . Processor 1 | . . . 1 Hackware 1 | . . . 1 Protection 2 | . . 1 1 Artifact . | . . . . Weapon 13 | 3 2 7 1 Energy Gun 4 | 2 1 1 . Energy Cannon 5 | . 1 4 . Ballistic Gun 4 | 1 . 2 1 Ballistic Cannon . | . . . . Launcher . | . . . . Special Weapon . | . . . . Impact Weapon . | . . . . Slashing Weapon . | . . . . Piercing Weapon . | . . . . Special Melee Weapon . | . . . . Unidentified Prototypes . | . . . . Parts Lost 13 | . 2 3 8 Power 1 | . . . 1 Propulsion 3 | . . 1 2 Utility 2 | . . . 2 Weapon 7 | . 2 2 3 Highest Loss Streak 7 | . 1 3 7 To Critical Strikes . | . . . . Average Backups 7 | 3 7 7 5 Power . | . 1 1 1 Propulsion 2 | 2 4 2 . Utility 2 | . 1 3 2 Weapon . | . . . 1 Tool/Special . | . . . . Unused Backups 4 | . . 1 3 Power . | . . . . Propulsion 1 | . . 1 . Utility 2 | . . . 2 Weapon . | . . . . Tool/Special 1 | . . . 1 Average Slot Usage (%) 93 | . 88 98 79 Engine 11 | . 14 12 . Treads 9 | . . 13 14 Leg 9 | . 28 2 . Wheel 5 | . . 9 . Device 5 | . 4 7 . Storage 12 | . 14 12 8 Protection 4 | . . 4 12 Energy Gun 10 | . 22 6 5 Energy Cannon 13 | . 1 17 19 Ballistic Gun 6 | . 2 9 . Peak Build Rating 32 | 6 10 28 32 Average Rating 16 | 4 7 19 29 On Entrance 11 | . 6 10 28 Avg Prop Armor Cover (%) . | . . . . Naked Turns . | . . . . Heaviest Build 48 | 14 21 38 48 Greatest Support 40 | 20 20 40 40 Greatest Overweight (x) 10 | . 1 8 10 Average Overweight (x) . | . . . . Largest Inventory Capacity 10 | 8 10 10 10 Average Capacity 9 | 6 9 10 10 Most Carried 10 | 6 10 10 10 Average Carried 8 | 4 7 9 9 Final Capacity 10 | 8 10 10 10 Final Carried 10 | 6 10 10 9 Class Distribution -------------------- 33% | Mutant 30% | Scavenger-Mutant 26% | Gunner 9% | Scavenger-Gunner Dominant Class ---------------- Mutant | -10/Materials Scavenger-Mutant | -10/Subcaves Gunner | -8/Materials Resources | -11 -10 -10 -8 ----------- Run | Yrd Mat Sub Mat Matter Collected 767 | 215 165 213 174 Remotely . | . . . . Salvage Created 1081 | . 289 534 258 Parts 64 | . 20 36 8 Haulers Intercepted 1 | . 1 . . Recyclers Shooed 1 | . . . 1 Parts Field Recycled . | . . . . Retrieved Matter . | . . . . Parts Self-Destructed 13 | . . 13 . Prevented . | . . . . Parts Restored . | . . . . Kills | -11 -10 -10 -8 ------- Run | Yrd Mat Sub Mat Combat Hostiles Destroyed 27 | . 9 13 5 Guns 10 | . 6 4 . Cannons 13 | . . 9 4 AOE 3 | . 3 . . Classes Destroyed 7 | . 4 1 2 Worker 1 | . 1 . . Hauler 1 | . 1 . . Operator 1 | . . . 1 Swarmer 7 | . 6 1 . Grunt 9 | . 3 2 4 Duelist 1 | . . . 1 Subdweller 10 | . . 10 . Best Kill Streak 4 | . 4 2 3 Combat Bots Only 3 | . 3 2 3 Max Kills in Single Turn 4 | . 4 1 1 Gunslinging . | . . . . Exploded 3 | . 3 . . Melee . | . . . . Uniques/NPCs Destroyed . | . . . . Combat | -11 -10 -10 -8 -------- Run | Yrd Mat Sub Mat Hostile Shots Fired 154 | . 43 51 60 Missed 27 | . 8 13 6 Hits 127 | . 35 38 54 Melee 1 | . . . 1 Projectile 126 | . 35 38 53 Critical Strikes 3 | . 1 . 2 Damage Taken 2391 | . 484 720 1187 Core 779 | . 142 78 559 Absorbed by Shields . | . . . . Core Remaining (%) 56 | 100 . 12 . Volleys Fired 79 | . 23 32 24 Largest 3 | . 2 3 3 Hottest 220 | . 80 170 220 Shots Fired 162 | . 41 69 52 Gun 85 | . 40 39 6 Cannon 77 | . 1 30 46 Launcher . | . . . . Special . | . . . . Kinetic 37 | . 11 26 . Thermal 96 | . 1 43 52 Explosive . | . . . . Electromagnetic 29 | . 29 . . Robot Hit Streak 10 | . 6 10 7 Robot Miss Streak 6 | . 3 2 6 Penetration Max . | . . . . Secondary Targets . | . . . . Shots Hit Robots 89 | . 21 41 27 Core Hits 43 | . 13 19 11 Critical Kills 1 | . . . 1 Critical Parts Destroyed . | . . . . Critical Strikes 2 | . . 1 1 Meltdown 1 | . . . 1 Destroy 1 | . . 1 . Melee Attacks . | . . . . Impact . | . . . . Slashing . | . . . . Piercing . | . . . . Sneak Attacks . | . . . . Combat Hostiles . | . . . . Follow-up Attacks . | . . . . Damage Inflicted 1967 | . 439 875 653 Guns 796 | . 276 415 105 Cannons 1021 | . 18 460 543 Explosions 145 | . 145 . . Melee . | . . . . Ramming 5 | . . . 5 Kinetic 287 | . 44 243 . Thermal 1346 | . 66 632 648 Explosive 97 | . 97 . . Electromagnetic 232 | . 232 . . Impact . | . . . . Slashing . | . . . . Piercing . | . . . . Highest Corruption . | . . . . Average Corruption . | . . . . Corruption Purged . | . . . . Corruption Blocked . | . . . . Overload Shots . | . . . . Overflow Damage 54 | . 38 16 . Projectiles 16 | . . 16 . Explosions 38 | . 38 . . Melee . | . . . . Knockbacks . | . . . . Impact . | . . . . Kinetic . | . . . . Secondary . | . . . . Self-Inflicted Damage 144 | . 144 . . Shots 2 | . 2 . . Rammed 1 | . . . 1 Targets Rammed 1 | . . . 1 Kicked . | . . . . Crushed . | . . . . Highest Temperature 1294 | . 81 122 1294 Average Temperature 467 | . 33 49 653 Received Heat Transfer 684 | . 87 84 513 Effects 52 | . . . 52 Shutdowns 10 | . . . 10 Energy Bleed 6 | . . . 6 Interference 6 | . . . 6 Matter Decay 10 | . . . 10 Short Circuit 3 | . . . 3 Damage (minor) 3 | . . . 3 Damage (major) 10 | . . . 10 Damage (core) 4 | . . . 4 Siege Activations . | . . . . Martial Activations . | . . . . Shielding Activations . | . . . . Robots Disrupted . | . . . . Combat Hostiles . | . . . . Robots Corrupted . | . . . . Combat Hostiles . | . . . . Parts Fried 1 | . 1 . . Impact Corruptions . | . . . . Robots Melted 1 | . . . 1 Combat Hostiles 1 | . . . 1 Parts Melted 7 | . . 1 6 Heat Transferred 2091 | . 137 941 1013 Parts Sabotaged . | . . . . Parts Stolen . | . . . . Parts Stripped . | . . . . Power Chain Reactions 1 | . 1 . . Alert | -11 -10 -10 -8 ------- Run | Yrd Mat Sub Mat Maximum Alert Level . | . . . . Low Security (%) 100 | 100 100 . 100 Level 1 . | . . . . Level 2 . | . . . . Level 3 . | . . . . Level 4 . | . . . . Level 5 . | . . . . High Security . | . . . . Max Security . | . . . . Peak Influence 181 | . 181 . 84 Initial 16 | . . . 16 Average 38 | . 42 . 38 Influence Increases 636 | . 276 155 205 Destroy 0b10 Robot/C 340 | . 180 60 100 Destroy 0b10 Robot/NC 15 | . 10 . 5 Destroy Leader 72 | . 32 20 20 Successful Hack 28 | . 15 . 13 Disable Machine 60 | . 15 . 45 Destroy Structure 31 | . 24 . 7 Lose Combat Pursuer 90 | . . 75 15 Influence Decreases 632 | . 135 263 234 Entered New Map 86 | . . 69 17 Time Decay 449 | . 115 194 140 Lost Part 97 | . 20 . 77 Squads Dispatched 3 | . . . 3 Investigation 2 | . . . 2 Extermination . | . . . . Reinforcement 1 | . . . 1 Assault . | . . . . Garrison . | . . . . Intercept . | . . . . Searches Triggered . | . . . . Construction Impeded . | . . . . Haulers Reinforced . | . . . . Active Scanning Responses . | . . . . Cargo Convoy Interrupts . | . . . . Stealth | -11 -10 -10 -8 --------- Run | Yrd Mat Sub Mat Distress Signals 1 | . 1 . . Communications Jammed . | . . . . Distress Signals . | . . . . Times Spotted 42 | . 14 16 12 Peak Tracking Total 5 | . 3 2 5 Tactical Retreats 4 | . . 3 1 Traps | -11 -10 -10 -8 ------- Run | Yrd Mat Sub Mat Traps Triggered . | . . . . Indirectly . | . . . . Trap Hack Attempts . | . . . . Triggered . | . . . . Disarmed . | . . . . Reprogrammed . | . . . . Reused . | . . . . Traps Extracted . | . . . . Installed . | . . . . Triggered . | . . . . Machines | -11 -10 -10 -8 ---------- Run | Yrd Mat Sub Mat Machines Disabled 5 | . 1 1 3 Max in Single Turn 2 | . 1 1 2 Machines Repaired . | . . . . Machines Dismantled . | . . . . Machines Sabotaged . | . . . . Overloaded Fab Kills . | . . . . Hacking | -11 -10 -10 -8 --------- Run | Yrd Mat Sub Mat Machines Accessed 10 | . 6 1 3 Terminals 7 | . 5 . 2 Fabricators . | . . . . Repair Stations . | . . . . Recycling Units 1 | . 1 . . Scanalyzers 1 | . . . 1 Garrison Access . | . . . . Total Hacks 38 | . 19 9 10 Successful 26 | . 8 9 9 Failed 12 | . 11 . 1 Catastrophic . | . . . . Database Lockouts . | . . . . Manual 20 | . 15 . 5 Terminals 23 | . 17 . 6 Fabricators . | . . . . Repair Stations . | . . . . Recycling Units 2 | . 2 . . Scanalyzers 4 | . . . 4 Garrison Access . | . . . . Terminal Hacks 17 | . 5 9 3 Record 8 | . . 8 . Robot Analysis 2 | . 2 . . Branch Access Points 1 | . . . 1 Locate Traps 1 | . 1 . . Recall Investigation 2 | . . . 2 Hauler Manifests 1 | . 1 . . Registered Components 1 | . 1 . . Proto ID Catalog 1 | . . 1 . Fabricator Hacks . | . . . . Repair Station Hacks . | . . . . Recycling Unit Hacks . | . . . . Scanalyzer 4 | . . . 4 Insert Component 2 | . . . 2 Analyze 1 | . . . 1 Retrieve Study 1 | . . . 1 Garrison Access Hacks . | . . . . Unauthorized Hacks 5 | . 3 . 2 Terminals 5 | . 3 . 2 Botnet 5 | . 3 . 2 Fabricators . | . . . . Repair Stations . | . . . . Recycling Units . | . . . . Scanalyzers . | . . . . Garrison Access . | . . . . Data Cores Recovered . | . . . . Used . | . . . . Hacking Detections 9 | . 6 . 3 Full Trace Events 2 | . . . 2 Feedback Events 1 | . . . 1 Hackware Fried 1 | . . . 1 Feedback Blocked . | . . . . Robot Schematics Acquired . | . . . . Robots Built . | . . . . Authchips . | . . . . Time . | . . . . Total Robot Build Rating . | . . . . Part Schematics Acquired . | . . . . Parts Built . | . . . . Authchips . | . . . . Time . | . . . . Total Part Build Rating . | . . . . Part Studies Acquired 1 | . . . 1 Parts Repaired . | . . . . Time . | . . . . Parts Recycled . | . . . . Recycled Matter . | . . . . Retrieved Matter . | . . . . Retrieved Components . | . . . . Parts Scanalyzed 1 | . . . 1 Part Schematics Acquired . | . . . . Parts Damaged . | . . . . Bothacking | -11 -10 -10 -8 ------------ Run | Yrd Mat Sub Mat Used RIF Installer . | . . . . Robots Hacked . | . . . . Non-combat . | . . . . Combat . | . . . . Robot Hacks Applied . | . . . . Relay Couplers Released . | . . . . Fabnet Peak Effective % . | . . . . Robots Rewired . | . . . . Allies Hacked . | . . . . Hacks Repelled . | . . . . Allies | -11 -10 -10 -8 -------- Run | Yrd Mat Sub Mat Total Allies . | . . . . Largest Group . | . . . . Highest-Rated Group . | . . . . Highest-Rated Ally . | . . . . Total Orders . | . . . . Ally Attacks . | . . . . Total Damage . | . . . . Kills . | . . . . Allies Corrupted . | . . . . Allies Melted . | . . . . Intel | -11 -10 -10 -8 ------- Run | Yrd Mat Sub Mat Active Infowar (turns) . | . . . . Robot Analysis Total 2 | . 2 . . Derelict Logs Recovered 2 | . . 2 . Drone Launches . | . . . . Drone Recoveries . | . . . . Exploration | -11 -10 -10 -8 ------------- Run | Yrd Mat Sub Mat Turns Passed 2531 | 64 703 1476 288 Spaces Moved 1561 | 45 482 934 100 Core 11 | 8 . 1 2 Treads 588 | . . 490 98 Legs 558 | 37 482 39 . Wheels 404 | . . 404 . Hover . | . . . . Flight . | . . . . Fastest Speed 50 | 50 120 105 160 Average Speed 134 | 107 120 138 176 Slowest Speed 550 | 120 190 450 550 Overloaded Moves . | . . . . Propulsion Burnouts . | . . . . Robots Hopped . | . . . . Potential Cave-ins . | . . . . Cave-ins Triggered . | . . . . Exploration Rate (%) 33 | 3 65 58 9 Regions Visited 3 Branch Regions 1 Pre-discovered Areas 1 | . . 1 . Known Exits Taken . | . . . . Unknown Exits Taken 3 | 1 1 1 . Scrap Searched . | . . . . Spaces Dug . | . . . . Terrain Destroyed 42 | . 30 6 6 Melee . | . . . . Projectile 12 | . . 6 6 AOE 30 | . 30 . . Terrain Rammed . | . . . . Walls Destroyed . | . . . . Machines Disabled . | . . . . Actions | -11 -10 -10 -8 --------- Run | Yrd Mat Sub Mat Total 1839 | 57 560 1053 169 Wait 122 | . 42 51 29 Move 1558 | 44 481 933 100 Hop . | . . . . Pick Up 14 | 5 5 4 . Fast Attach 19 | 7 2 5 5 Attach 11 | . 2 7 2 Detach 4 | 1 . 2 1 Swap 12 | . 4 6 2 Drop 19 | . 1 13 5 Fire 79 | . 23 32 24 Melee . | . . . . Ram . | . . . . Kick . | . . . . Crush 1 | . . . 1 Escape Stasis . | . . . . Rewire . | . . . . Trap . | . . . . Miscellaneous . | . . . . Route ------- -11/Scrapyard -10/Materials (discovered 4 exits: [*Mat x2] / [*Min] / *Sub) -10/Subcaves -8/Materials History --------- Turn | Location | Event 9 | -11/Scrapyard | Discovered new exit (range 15) 65 | -11/Scrapyard | Entered Materials 306 | -10/Materials | Discovered new exit (range 5) 310 | -10/Materials | Build established: Mutant 389 | -10/Materials | Discovered new exit (range 15) 618 | -10/Materials | Core integrity fell below 50% 713 | -10/Materials | Discovered new exit (range 9) 761 | -10/Materials | Discovered new exit (range 7) 768 | -10/Materials | Entered Subcaves 769 | -10/Subcaves | Approached by a straggling Scientist 787 | -10/Subcaves | Core integrity fell below 20% 1101 | -10/Subcaves | Build established: Scavenger-Mutant 1405 | -10/Subcaves | Lost 3 parts (1n2w) 1529 | -10/Subcaves | Visited 4L-MR0's lab 1572 | -10/Subcaves | Found Gun Armor 1573 | -10/Subcaves | Attached Gun Armor, gained temporary slots: Weapon x2 1640 | -10/Subcaves | Found Prototype Special Melee Weapon 1795 | -10/Subcaves | Learned location of Mines (-9) 2034 | -10/Subcaves | Discovered new exit (range 14) 2244 | -10/Subcaves | Entered Materials 2244 | -8/Materials | Evolved 4 slots: Propulsion x1, Utility x2, Weapon x1 2345 | -8/Materials | Identified 1B-0RG's Assimilator 2345 | -8/Materials | Hacking Suite fried by hacking feedback 2510 | -8/Materials | Core integrity fell below 50% 2527 | -8/Materials | Core integrity fell below 20% 2532 | -8/Materials | Destroyed by G-47 Trooper with Particle Gun Last Messages --------------- 02515_ Overheating: Energy bleed (-41). 02518_ Overheating: Core damaged (-66). 02520_ Overheating: System interference. 02520_ Beam Cannon temporarily disabled. 02521_ Overheating: Nuclear Core damaged (-23). 02521_ Overheating: Gun Armor damaged (-408). 02521_ Overheating: Targeting Computer damaged (-5). 02522_ Beam Cannon destroyed. 02524_ Power failure, Nuclear Core shutdown. 02524_ Hrd. Medium Armor Plating destroyed. 02524_ K-01 Serf collects debris. 02525_ U-05 Engineer builds a Wall. 02526_ Overheating: Matter decay (-22). 02527_ U-05 Engineer builds a Wall. 02527_ K-01 Serf collects debris. 02528_ Overheating: Energy bleed (-33). 02530_ Nuclear Core destroyed. 02531_ K-01 Serf collects debris. 02532_ Overheating: Core damaged (-60). 02532_ U-05 Engineer builds a Wall. Map ----- +----------------------------------------------------+ | ???????????????????????# # [#??? | | ???????????????????????# # * = ##?? | | ???????????????????????# + / "#?? | | ???????????????????????# # "" ="" #?? | | ???????????????????????# # "T """ "#?? | | ???????????????????????# # "" """ ##?? | | ???????????????????????# # #??? | | ???????????????????????# ##########??? | | ???????????????????????# #???????????? | | ???????????????????????# #???????????? | | ???????????????????????# #???????????? | | ???????????????????????# #???????????? | | ???????????????????????# #???????????? | | ???????????????????????# #???????????? | | ???????????????????????# ########????? | | ???????????????????????# # ####?? | | ??????????????????????## # """ "" #?? | | ???????????????????##### %#=""" """#?? | | ???????????????????# + """ S"#?? | | ??????????# ##### ### #= ####?? | | ??????????# #?# #[ ! #????? | | ???????# ###g########????? | | ???????# ###/#######?????? | | ???????? // # k%u #?????? | | ???????? // # g "T" #?????? | | ????????? #[@ ! #?????? | | ????????? # % #?????? | | ????????? " ###+########?????? | | ??????????T ?? ????????????? | | ??????????" ?? ????????????? | | ??????????? ?? ????????????? | | ??????????? ?? !????????????? | | ?????????????###/#####?? !????????????? | | ??????????????? ??????? !????????????? | | ????????????????????????###????????????? | | ???????????????????????????????????????? | | ???????????????????????????????????????? | | ???????????????????????????????????????? | | ???????????????????????????????????????? | | ???????????????????????????????????????? | | ???????????????????????????????????????? | | ???????????????????????????????????????? | | ???????????????????????????????????????? | | ???????????????????????????????????????? | | ???????????????????????????????????????? | | ???????????????????????????????????????? | | ???????????????????????????????????????? | | ???????????????????????????????????????? | | ???????????????????????????????????????? | | ???????????????????????????????????????? | +----------------------------------------------------+ Best States ------------- Heat Dissipation 39 Energy Generation 15 Energy Capacity 250 Matter Stores 300 Matter Capacity 300 Sight Range 16 Terrain Scan Density 10 Armor Coverage 285 Evasion (%) 55 Targeting Accuracy 5 Recoil Reduction 2 Offensive Hacking 10 Item Schematics ----------------- None Robot Schematics ------------------ None Fabricated ------------ Nothing Repaired ---------- Nothing Studied --------- Lgt. Treads | -8/Materials | Hacked Alien Tech Used ----------------- None Achievements -------------- Mistaken Identity Challenges ------------ None Game ------ Seed WarlordHeavyScrap Manual? 0 Play Time 00:25:22 Cumulative 52.0 hours Start 2026.02.24 @ 17:04:36 End 2026.02.24 @ 17:29:08 Sessions 1 Manual Loads 0 Difficulty Rogue Special Mode None Game No. 80 Rogue 80 Adventurer 0 Explorer 0 Win Type - Total 1 Types 1/0/0/0/0/0/0/0/0/0 Lore% 46 Gallery% 35 Achievement% 24 Wizard Run 0 Options --------- Layout 0 ASCII 0 Keyboard 1 Movement Numpad Keybinds 0 Fullscreen 1 Font 24/Smallcaps Map View 76x50 Zoom Use 0% Tactical HUD 1 Map Filters NONE Filters NONE Steam 1 RUN: 0ff944d6-95af-41bf-bcd8-149948285183